fUSD/lending_fUSD_20260304
["ID","MTS","AMOUNT","RATE_DAILY","PERIOD"]
[407645695,1772604279641,-5000.0,0.00046835,120]
[407645697,1772604279705,-5000.0,0.00046835,120]
[407645699,1772604279768,-5000.0,0.00046835,120]
[407645701,1772604279831,-500.0,0.00046835,120]
[407645703,1772604279892,-500.0,0.00046835,120]
[407645705,1772604279955,-500.0,0.00046835,120]
[407645707,1772604280023,-500.0,0.00046835,120]
[407645709,1772604280080,-500.0,0.00046835,120]
[407645711,1772604280146,-500.0,0.00046835,120]
[407645713,1772604280210,-500.0,0.00046835,120]
[407645715,1772604280272,-500.0,0.00046835,120]
[407645718,1772604280334,-500.0,0.00046835,120]
[407645719,1772604280401,-639.13294971,0.00046835,120]
[407645722,1772604280463,-504.49670326,0.00046835,120]
[407645723,1772604280525,-565.20166539,0.00046835,120]
[407645726,1772604280588,-27089.972635,0.00046835,120]
[407645727,1772604280651,-350.37079747,0.00046835,120]
[407645729,1772604280713,-155.929066,0.00046835,120]
[407645731,1772604280776,-2000.0,0.00046835,30]
[407645733,1772604280843,-897.0,0.00046835,30]
[407645736,1772604280910,-500.0,0.00046835,120]
[407645737,1772604280979,-500.0,0.00046835,120]
[407645739,1772604281043,-500.0,0.00046835,120]
[407645742,1772604281108,-500.0,0.00046835,120]
[407645744,1772604281175,-624.88075949,0.00046835,120]
[407645745,1772604281238,-500.0,0.00046835,120]
[407645748,1772604281295,-500.0,0.00046835,120]
[407645750,1772604281358,-500.0,0.00046835,120]
[407645751,1772604281423,-500.0,0.00046835,120]
[407645753,1772604281486,-500.0,0.00046835,120]
[407645756,1772604281549,-500.0,0.00046835,120]
[407645758,1772604281608,-500.0,0.00046835,120]
[407645759,1772604281670,-500.0,0.00046835,120]
[407645761,1772604281730,-416.81,0.00046835,120]
[407645763,1772604281788,-500.0,0.00046835,120]
[407645766,1772604281850,-500.0,0.00046835,120]
[407645767,1772604281909,-476.53350759,0.00046835,120]
[407645769,1772604281972,-194.44950484,0.00046835,120]
[407645771,1772604282029,-150.0,0.00046835,120]
[407645773,1772604282082,-151.0,0.00046835,120]
[407645775,1772604282134,-151.0,0.00046835,120]
[407645777,1772604282185,-151.0,0.00046835,120]
[407645779,1772604282237,-151.0,0.00046835,120]
[407645781,1772604282285,-151.0,0.00046835,120]
[407645783,1772604282336,-151.0,0.00046835,120]
[407645785,1772604282385,-151.0,0.00046835,120]
[407645787,1772604282436,-151.0,0.00046835,120]
[407645789,1772604282486,-151.0,0.00046835,120]
[407645791,1772604282536,-151.0,0.00046835,120]
[407645793,1772604282587,-151.0,0.00046835,120]
[407645795,1772604282636,-151.0,0.00046835,120]
[407645797,1772604282688,-151.0,0.00046835,120]
[407645799,1772604282741,-151.0,0.00046835,120]
[407645801,1772604282794,-151.0,0.00046835,120]
[407645802,1772604282846,-151.0,0.00046835,120]
[407645803,1772604282900,-151.0,0.00046835,120]
[407645804,1772604282953,-151.0,0.00046835,120]
[407645805,1772604283012,-501.02533339,0.00046835,120]
[407645806,1772604283067,-2009.26915759,0.00046835,120]
[407645807,1772604283123,-151.0,0.00046835,120]
[407645808,1772604283176,-151.0,0.00046835,120]
[407645809,1772604283230,-824.0,0.00046835,30]
[407645810,1772604283283,-824.0,0.00046835,120]
[407645811,1772604283476,-2314371.39648129,0.00046835,30]
[407645812,1772604283534,-170.0,0.00046835,30]
[407645813,1772604283591,-176.29,0.00046835,30]
[407645814,1772604283646,-182.81273,0.00046835,30]
[407645816,1772604283700,-189.57680101,0.00046835,30]
[407645817,1772604283758,-196.59114265,0.00046835,30]
[407645819,1772604283816,-203.86501493,0.00046835,30]
[407645820,1772604283872,-211.40802048,0.00046835,30]
[407645821,1772604283928,-219.23011724,0.00046835,30]
[407645822,1772604283984,-227.34163157,0.00046835,30]
[407645823,1772604284040,-227.34163157,0.00046835,30]
[407645824,1772604284099,-500.0,0.00046835,120]
[407645826,1772604284154,-500.0,0.00046835,120]
[407645828,1772604284207,-591.97138685,0.00046835,120]
[407645830,1772604284261,-200.0,0.00046835,30]
[407645832,1772604284314,-151.0,0.00046835,120]
[407645834,1772604284366,-156.587,0.00046835,120]
[407645835,1772604284426,-162.380719,0.00046835,120]
[407645837,1772604284486,-168.3888056,0.00046835,120]
[407645839,1772604284544,-174.61919141,0.00046835,120]
[407645841,1772604284601,-174.61919141,0.00046835,120]
[407645843,1772604284655,-500.0,0.00046835,120]
[407645845,1772604284709,-1658.09010509,0.00046835,30]
[407645847,1772604284765,-500.0,0.00046835,120]
[407645849,1772604284822,-518.5,0.00046835,120]
[407645851,1772604284876,-537.6845,0.00046835,120]
[407645853,1772604284931,-557.5788265,0.00046835,120]
[407645854,1772604284991,-578.20924308,0.00046835,120]
[407645856,1772604285049,-599.60298507,0.00046835,120]
[407645858,1772604285107,-621.78829552,0.00046835,120]
[407645860,1772604285164,-644.79446246,0.00046835,120]
[407645862,1772604285219,-668.65185757,0.00046835,120]
[407645864,1772604285273,-693.3919763,0.00046835,120]
[407645866,1772604285329,-719.04747942,0.00046835,120]
[407645867,1772604285384,-500.0,0.00046835,120]
[407645868,1772604285441,-745.65223616,0.00046835,120]
[407645869,1772604285499,-773.2413689,0.00046835,120]
[407645870,1772604285556,-801.85129955,0.00046835,120]
[407645871,1772604285615,-831.51979763,0.00046835,120]
[407645872,1772604285675,-862.28603014,0.00046835,120]
[407645873,1772604285731,-894.19061326,0.00046835,120]
[407645874,1772604285786,-927.27566595,0.00046835,120]
[407645875,1772604285842,-188.6798767,0.00046835,120]
[407645876,1772604285898,-961.58486559,0.00046835,120]
[407645877,1772604285955,-961.58486559,0.00046835,120]
[407645878,1772604286014,-151.0,0.00046835,120]
[407645879,1772604286070,-500.0,0.00046835,120]
[407645880,1772604286126,-151.0,0.00046835,120]
[407645881,1772604286182,-500.0,0.00046835,120]
[407645882,1772604286237,-500.0,0.00046835,120]
[407645883,1772604286292,-151.0,0.00046835,120]
[407645884,1772604286348,-500.0,0.00046835,120]
[407645885,1772604286404,-500.0,0.00046835,120]
[407645886,1772604286459,-151.0,0.00046835,120]
[407645887,1772604286517,-500.0,0.00046835,120]
[407645888,1772604286580,-500.0,0.00046835,120]
[407645889,1772604286641,-151.0,0.00046835,120]
[407645890,1772604286696,-500.0,0.00046835,120]
[407645891,1772604286753,-500.0,0.00046835,120]
[407645892,1772604286808,-500.0,0.00046835,120]
[407645893,1772604286865,-151.0,0.00046835,120]
[407645894,1772604286922,-500.0,0.00046835,120]
[407645895,1772604286979,-500.0,0.00046835,120]
[407645896,1772604287035,-151.0,0.00046835,120]
[407645897,1772604287096,-500.0,0.00046835,120]
[407645898,1772604287158,-500.0,0.00046835,120]
[407645899,1772604287218,-500.0,0.00046835,120]
[407645900,1772604287279,-500.0,0.00046835,120]
[407645901,1772604287340,-500.0,0.00046835,120]
[407645902,1772604287397,-500.0,0.00046835,120]
[407645903,1772604287455,-500.0,0.00046835,120]
[407645904,1772604287512,-500.0,0.00046835,120]
[407645905,1772604287576,-500.0,0.00046835,120]
[407645906,1772604287635,-500.0,0.00046835,120]
[407645907,1772604287694,-572.72168193,0.00046835,120]
[407645908,1772604287751,-251.0,0.00046835,120]
[407645909,1772604287808,-251.0,0.00046835,120]
[407645910,1772604287863,-3047.84147971,0.00046835,30]
[407645911,1772604287918,-4051.7602515,0.00046835,30]
[407645912,1772604287973,-151.0,0.00046835,120]
[407645913,1772604288032,-932.48644831,0.00046835,120]
[407645914,1772604288093,-269.79976438,0.00046835,120]
[407645915,1772604288153,-156.587,0.00046835,120]
[407645916,1772604288210,-162.380719,0.00046835,120]
[407645917,1772604288267,-162.380719,0.00046835,120]
[407645918,1772604288324,-151.0,0.00046835,120]
[407645919,1772604288380,-250.0,0.00046835,120]
[407645920,1772604288437,-520.0,0.00046835,120]
[407645921,1772604288495,-151.0,0.00046835,120]
[407645922,1772604288553,-250.0,0.00046835,120]
[407645923,1772604288612,-539.24,0.00046835,120]
[407645924,1772604288668,-151.0,0.00046835,120]
[407645925,1772604288726,-250.0,0.00046835,120]
[407645927,1772604288782,-559.19188,0.00046835,120]
[407645928,1772604288841,-151.0,0.00046835,120]
[407645929,1772604288901,-151.0,0.00046835,120]
[407645930,1772604288959,-250.0,0.00046835,120]
[407645931,1772604289024,-579.88197956,0.00046835,120]
[407645932,1772604289084,-151.0,0.00046835,120]
[407645933,1772604289152,-250.0,0.00046835,120]
[407645934,1772604289224,-601.3376128,0.00046835,120]
[407645935,1772604289286,-151.0,0.00046835,120]
[407645936,1772604289347,-250.0,0.00046835,120]
[407645937,1772604289406,-623.58710448,0.00046835,120]
[407645938,1772604289469,-151.0,0.00046835,120]
[407645939,1772604289710,-250.0,0.00046835,120]
[407645940,1772604289767,-646.65982734,0.00046835,120]
[407645941,1772604289828,-151.0,0.00046835,120]
[407645942,1772604289890,-670.58624095,0.00046835,120]
[407645943,1772604289955,-250.0,0.00046835,120]
[407645944,1772604290024,-151.0,0.00046835,120]
[407645945,1772604290084,-670.58624095,0.00046835,120]
[407645946,1772604290151,-250.0,0.00046835,120]
[407645947,1772604290221,-151.0,0.00046835,120]
[407645948,1772604290283,-151.0,0.00046835,120]
[407645949,1772604290345,-151.0,0.00046835,120]
[407645950,1772604290405,-151.0,0.00046835,120]
[407645951,1772604290465,-2500.0,0.00046835,120]
[407645952,1772604290527,-151.0,0.00046835,120]
[407645953,1772604290586,-2500.0,0.00046835,120]
[407645954,1772604290642,-151.0,0.00046835,120]
[407645955,1772604290709,-300.0,0.00046835,120]
[407645956,1772604290769,-2500.0,0.00046835,120]
[407645957,1772604290830,-500.0,0.00046835,120]
[407645958,1772604290890,-151.0,0.00046835,120]
[407645959,1772604290951,-300.0,0.00046835,120]
[407645960,1772604291013,-2500.0,0.00046835,120]
[407645961,1772604291073,-500.0,0.00046835,120]
[407645962,1772604291135,-151.0,0.00046835,120]
[407645963,1772604291199,-300.0,0.00046835,120]
[407645964,1772604291258,-2500.0,0.00046835,120]
[407645965,1772604291317,-500.0,0.00046835,120]
[407645966,1772604291377,-151.0,0.00046835,120]
[407645967,1772604291435,-300.0,0.00046835,120]
[407645968,1772604291493,-2500.0,0.00046835,120]
[407645969,1772604291552,-500.0,0.00046835,120]
[407645970,1772604291611,-151.0,0.00046835,120]
[407645971,1772604291669,-300.0,0.00046835,120]
[407645972,1772604291733,-2500.0,0.00046835,120]
[407645973,1772604291792,-500.0,0.00046835,120]
[407645974,1772604291848,-300.0,0.00046835,120]
[407645975,1772604291906,-2500.0,0.00046835,120]
[407645976,1772604291962,-500.0,0.00046835,120]
[407645977,1772604292021,-300.0,0.00046835,120]
[407645978,1772604292076,-2500.0,0.00046835,120]
[407645979,1772604292134,-500.0,0.00046835,120]
[407645980,1772604292191,-300.0,0.00046835,120]
[407645981,1772604292253,-500.0,0.00046835,120]
[407645982,1772604292315,-300.0,0.00046835,120]
[407645983,1772604292380,-500.0,0.00046835,120]
[407645984,1772604292443,-500.0,0.00046835,120]
[407645985,1772604292502,-3000.0,0.00046835,120]
[407645986,1772604292562,-500.0,0.00046835,120]
[407645987,1772604292624,-3000.0,0.00046835,120]
[407645988,1772604292684,-500.0,0.00046835,120]
[407645989,1772604292742,-3000.0,0.00046835,120]
[407645990,1772604292805,-500.0,0.00046835,120]
[407645991,1772604292865,-3000.0,0.00046835,120]
[407645992,1772604292923,-500.0,0.00046835,120]
[407645993,1772604292980,-3000.0,0.00046835,120]
[407645994,1772604293039,-500.0,0.00046835,120]
[407645995,1772604293099,-3000.0,0.00046835,120]
[407645996,1772604293158,-500.0,0.00046835,120]
[407645997,1772604293218,-3000.0,0.00046835,120]
[407645998,1772604293276,-500.0,0.00046835,120]
[407645999,1772604293335,-3000.0,0.00046835,120]
[407646000,1772604293391,-500.0,0.00046835,120]
[407646001,1772604293448,-500.0,0.00046835,120]
[407646002,1772604293504,-3000.0,0.00046835,120]
[407646003,1772604293563,-500.0,0.00046835,120]
[407646004,1772604293623,-500.0,0.00046835,120]
[407646005,1772604293685,-500.0,0.00046835,120]
[407646006,1772604293743,-500.0,0.00046835,120]
[407646007,1772604293799,-200.0,0.00046835,120]
[407646008,1772604293859,-500.0,0.00046835,120]
[407646009,1772604293917,-200.0,0.00046835,120]
[407646010,1772604293973,-500.0,0.00046835,120]
[407646011,1772604294030,-250.0,0.00046835,120]
[407646012,1772604294087,-200.0,0.00046835,120]
[407646013,1772604294146,-500.0,0.00046835,120]
[407646014,1772604294204,-270.94567741,0.00046835,120]
[407646015,1772604294263,-250.0,0.00046835,120]
[407646016,1772604294320,-200.0,0.00046835,120]
[407646017,1772604294376,-500.0,0.00046835,120]
[407646018,1772604294434,-250.0,0.00046835,120]
[407646019,1772604294490,-200.0,0.00046835,120]
[407646020,1772604294549,-500.0,0.00046835,120]
[407646021,1772604294605,-250.0,0.00046835,120]
[407646022,1772604294663,-200.0,0.00046835,120]
[407646023,1772604294722,-250.0,0.00046835,120]
[407646024,1772604294780,-200.0,0.00046835,120]
[407646025,1772604294839,-250.0,0.00046835,120]
[407646026,1772604294899,-200.0,0.00046835,120]
[407646027,1772604294959,-250.0,0.00046835,120]
[407646028,1772604295022,-250.0,0.00046835,120]
[407646029,1772604295082,-250.0,0.00046835,120]
[407646030,1772604295145,-200.0,0.00046835,120]
[407646031,1772604295204,-250.0,0.00046835,120]
[407646032,1772604295265,-250.0,0.00046835,120]
[407646033,1772604295325,-250.0,0.00046835,120]
[407646034,1772604295384,-250.0,0.00046835,120]
[407646035,1772604295444,-321.16302629,0.00046835,120]
[407646036,1772604295504,-250.0,0.00046835,120]
[407646037,1772604295583,-250.0,0.00046835,120]
[407646038,1772604295643,-250.0,0.00046835,120]
[407646039,1772604295702,-500.0,0.00046835,120]
[407646040,1772604295768,-250.0,0.00046835,120]
[407646041,1772604295835,-500.0,0.00046835,120]
[407646042,1772604295895,-151.0,0.00046835,120]
[407646043,1772604296089,-250.0,0.00046835,120]
[407646044,1772604296157,-156.587,0.00046835,120]
[407646045,1772604296217,-162.380719,0.00046835,120]
[407646046,1772604296275,-168.3888056,0.00046835,120]
[407646047,1772604296336,-174.61919141,0.00046835,120]
[407646048,1772604296397,-620.0,0.00046835,120]
[407646049,1772604296458,-181.08010149,0.00046835,120]
[407646050,1772604296523,-500.0,0.00046835,120]
[407646051,1772604296586,-642.94,0.00046835,120]
[407646052,1772604296647,-164.53479354,0.00046835,120]
[407646053,1772604296705,-187.78006525,0.00046835,120]
[407646054,1772604296764,-518.5,0.00046835,120]
[407646055,1772604296825,-194.72792766,0.00046835,120]
[407646056,1772604296883,-666.72878,0.00046835,120]
[407646057,1772604296945,-537.6845,0.00046835,120]
[407646058,1772604297010,-201.93286099,0.00046835,120]
[407646059,1772604297081,-691.39774486,0.00046835,120]
[407646060,1772604297140,-557.5788265,0.00046835,120]
[407646061,1772604297201,-691.39774486,0.00046835,120]
[407646062,1772604297261,-578.20924308,0.00046835,120]
[407646063,1772604297319,-599.60298507,0.00046835,120]
[407646064,1772604297376,-621.78829552,0.00046835,120]
[407646065,1772604297432,-644.79446246,0.00046835,120]
[407646066,1772604297488,-668.65185757,0.00046835,120]
[407646067,1772604297546,-693.3919763,0.00046835,120]
[407646068,1772604297603,-719.04747942,0.00046835,120]
[407646069,1772604297659,-151.0,0.00046835,120]
[407646070,1772604297714,-745.65223616,0.00046835,120]
[407646071,1772604297770,-151.0,0.00046835,120]
[407646072,1772604297835,-773.2413689,0.00046835,120]
[407646073,1772604297896,-151.0,0.00046835,120]
[407646074,1772604297955,-151.0,0.00046835,120]
[407646075,1772604298014,-151.0,0.00046835,120]
[407646076,1772604298072,-151.0,0.00046835,120]
[407646077,1772604298130,-151.0,0.00046835,120]
[407646078,1772604298190,-151.0,0.00046835,120]
[407646079,1772604298247,-151.0,0.00046835,120]
[407646080,1772604298304,-151.0,0.00046835,120]
[407646081,1772604298360,-151.0,0.00046835,120]
[407646082,1772604298416,-151.0,0.00046835,120]
[407646083,1772604298474,-151.0,0.00046835,120]
[407646084,1772604298536,-151.0,0.00046835,120]
[407646085,1772604298597,-500.0,0.00046835,120]
[407646086,1772604298655,-500.0,0.00046835,120]
[407646087,1772604298715,-151.0,0.00046835,120]
[407646088,1772604298778,-500.0,0.00046835,120]
[407646089,1772604298841,-151.0,0.00046835,120]
[407646090,1772604298910,-500.0,0.00046835,120]
[407646091,1772604298980,-151.0,0.00046835,120]
[407646092,1772604299051,-500.0,0.00046835,120]
[407646093,1772604299120,-151.0,0.00046835,120]
[407646094,1772604299186,-151.0,0.00046835,120]
[407646095,1772604299247,-151.0,0.00046835,120]
[407646096,1772604299307,-151.0,0.00046835,120]
[407646097,1772604299366,-151.0,0.00046835,120]
[407646098,1772604299427,-151.0,0.00046835,120]
[407646099,1772604299489,-500.0,0.00046835,120]
[407646100,1772604299553,-500.0,0.00046835,120]
[407646101,1772604299619,-840.01684677,0.00046835,30]
[407646102,1772604299685,-500.0,0.00046835,120]
[407646103,1772604299752,-500.0,0.00046835,120]
[407646104,1772604299813,-500.0,0.00046835,120]
[407646105,1772604299876,-500.0,0.00046835,120]
[407646106,1772604299938,-500.0,0.00046835,120]
[407646107,1772604300000,-500.0,0.00046835,120]
[407646108,1772604300072,-500.0,0.00046835,120]
[407646109,1772604300145,-500.0,0.00046835,120]
[407646110,1772604300539,500.0,0.00046835,120]
[407646111,1772604300623,2468.18289657,0.00046835,30]
[407646112,1772604300689,8054.77747408,0.00046835,30]
[407646113,1772604300760,500.0,0.00046835,120]
[407646114,1772604300840,500.0,0.00046835,120]
[407646115,1772604300929,500.0,0.00046835,120]
[407646116,1772604301002,500.0,0.00046835,120]
[407646117,1772604301102,500.0,0.00046835,120]
[407646118,1772604301207,500.0,0.00046835,120]
[407646119,1772604301301,500.0,0.00046835,120]
[407646120,1772604301857,151.0,0.00046835,120]
[407646121,1772604301928,151.0,0.00046835,120]
[407646122,1772604302052,151.0,0.00046835,120]
[407646123,1772604302121,151.0,0.00046835,120]
[407646124,1772604302189,151.0,0.00046835,120]
[407646125,1772604302262,151.0,0.00046835,120]
[407646126,1772604302330,151.0,0.00046835,120]
[407646127,1772604302398,381.43589768,0.00046835,120]
[407646128,1772604302495,151.0,0.00046835,120]
[407646129,1772604302561,151.0,0.00046835,120]
[407646130,1772604302627,151.0,0.00046835,120]
[407646131,1772604302711,151.0,0.00046835,120]
[407646132,1772604302791,151.0,0.00046835,120]
[407646133,1772604302905,151.0,0.00046835,120]
[407646134,1772604303000,151.0,0.00046835,120]
[407646135,1772604303080,151.0,0.00046835,120]
[407646136,1772604303181,151.0,0.00046835,120]
[407646137,1772604303263,151.0,0.00046835,120]
[407646138,1772604303378,151.0,0.00046835,120]
[407646139,1772604303522,151.0,0.00046835,120]
[407646140,1772604303602,151.0,0.00046835,120]
[407646141,1772604303770,500.0,0.00046835,120]
[407646142,1772604303859,518.5,0.00046835,120]
[407646143,1772604303931,537.6845,0.00046835,120]
[407646144,1772604304002,557.5788265,0.00046835,120]
[407646145,1772604304107,578.20924308,0.00046835,120]
[407646146,1772604304192,599.60298507,0.00046835,120]
[407646147,1772604304276,621.78829552,0.00046835,120]
[407646148,1772604304347,644.79446246,0.00046835,120]
[407646149,1772604304417,668.65185757,0.00046835,120]
[407646150,1772604304491,693.3919763,0.00046835,120]
[407646151,1772604304561,719.04747942,0.00046835,120]
[407646152,1772604304637,745.65223616,0.00046835,120]
[407646153,1772604304719,773.2413689,0.00046835,120]
[407646154,1772604304793,801.85129955,0.00046835,120]
[407646155,1772604304872,831.51979763,0.00046835,120]
[407646156,1772604304947,862.28603014,0.00046835,120]
[407646157,1772604305030,894.19061326,0.00046835,120]
[407646158,1772604305108,927.27566595,0.00046835,120]
[407646159,1772604305179,961.58486559,0.00046835,120]
[407646160,1772604305252,961.58486559,0.00046835,120]
[407646161,1772604325515,-1000.0,0.0002,120]
[407646162,1772604325575,-1000.0,0.0002,120]
[407646163,1772604325637,-180.85879292,0.0002,120]
[407646164,1772604325698,-2914.28,0.0002,120]
[407646165,1772604325775,-297.79,0.00025549,120]
[407646166,1772604325838,-20500.0,0.0003,120]
[407646167,1772604325895,-178.0,0.0003,120]
[407646168,1772604325950,-1000.0,0.0003,120]
[407646169,1772604326006,-1000.0,0.0003,120]
[407646170,1772604326066,-150.77,0.000302,30]
[407646171,1772604326124,-160.0,0.00031,120]
[407646172,1772604326188,-2000.0,0.00032877,120]
[407646173,1772604326245,-2000.0,0.00032877,120]
[407646174,1772604326300,-2000.0,0.00032877,120]
[407646175,1772604326354,-2000.0,0.00032877,120]
[407646176,1772604326411,-2000.0,0.00032877,120]
[407646177,1772604326483,-1626.0,0.00032877,120]
[407646178,1772604326547,-150.49,0.00034712,30]
[407646179,1772604326606,-1244.33,0.00034712,30]
[407646180,1772604326663,-3907.111,0.00035,120]
[407646181,1772604326723,-155.61811925,0.00036184,50]
[407646182,1772604326781,-188.0,0.000369,120]
[407646183,1772604326838,-181.0,0.000369,120]
[407646184,1772604326894,-175.89540934,0.000372,120]
[407646185,1772604326949,-573.61055925,0.00038,30]
[407646186,1772604327002,-335.19699358,0.000381,33]
[407646187,1772604327060,-188.0,0.00038745,120]
[407646188,1772604327116,-150.49,0.00038831,120]
[407646189,1772604327175,-933.24,0.00038831,120]
[407646190,1772604327232,-12386.42186215,0.0003888,30]
[407646191,1772604327289,-200.0,0.0004,120]
[407646192,1772604327350,-160.0,0.0004,120]
[407646193,1772604327406,-2500.0,0.0004,120]
[407646194,1772604327461,-4054.83028321,0.0004,120]
[407646195,1772604327517,-156.0,0.0004,120]
[407646196,1772604327573,-151.0,0.0004,120]
[407646197,1772604327629,-1801.01526981,0.0004,120]
[407646198,1772604327685,-415.42186592,0.0004,120]
[407646199,1772604327743,-62510.034845,0.0004,90]
[407646200,1772604327798,-645.19,0.0004,120]
[407646201,1772604327854,-198.67,0.0004,120]
[407646202,1772604327911,-347.35,0.0004,120]
[407646203,1772604327970,-317.71,0.0004,120]
[407646204,1772604328033,-370.02,0.0004,120]
[407646205,1772604328093,-9875.9,0.000402,30]
[407646206,1772604328382,-1172.6,0.00040648,58]
[407646207,1772604328442,-188.0,0.00040682,120]
[407646208,1772604328499,-151.0,0.000407,120]
[407646209,1772604328555,-151.0,0.000407,120]
[407646210,1772604328613,-151.0,0.000407,120]
[407646211,1772604328670,-283.25663334,0.000407,120]
[407646212,1772604328730,-281.520934,0.000407,120]
[407646213,1772604328796,-281.520934,0.000407,120]
[407646214,1772604328856,-281.520934,0.000407,120]
[407646215,1772604328917,-281.520934,0.000407,120]
[407646216,1772604328979,-1499.271441,0.000407,120]
[407646217,1772604329043,-1499.271441,0.000407,120]
[407646218,1772604329104,-1499.271441,0.000407,120]
[407646219,1772604329166,-1499.271441,0.000407,120]
[407646220,1772604329226,-1198.76,0.00041,120]
[407646221,1772604329290,-649.24901751,0.00041,30]
[407646222,1772604329348,-300.0,0.00041096,30]
[407646223,1772604329409,-253.4,0.00041096,90]
[407646224,1772604329466,-151.0,0.00041096,120]
[407646225,1772604329530,-151.0,0.00041096,120]
[407646226,1772604329591,-151.0,0.00041096,120]
[407646227,1772604329649,-151.0,0.00041096,120]
[407646228,1772604329709,-151.0,0.00041096,120]
[407646229,1772604329770,-151.0,0.00041096,120]
[407646230,1772604329827,-151.0,0.00041096,120]
[407646231,1772604329884,-151.0,0.00041096,120]
[407646232,1772604329940,-151.0,0.00041096,120]
[407646233,1772604329996,-151.0,0.00041096,120]
[407646234,1772604330052,-151.0,0.00041096,120]
[407646235,1772604330111,-151.0,0.00041096,120]
[407646236,1772604330169,-188.158583,0.00041096,120]
[407646237,1772604330231,-151.0,0.00041096,120]
[407646238,1772604330304,-151.0,0.00041096,120]
[407646239,1772604330362,-151.0,0.00041096,120]
[407646240,1772604330419,-151.0,0.00041096,120]
[407646241,1772604330476,-151.0,0.00041096,120]
[407646242,1772604330534,-151.0,0.00041096,120]
[407646243,1772604330591,-291.16668,0.00041096,120]
[407646244,1772604330648,-2021.431212,0.00041096,120]
[407646245,1772604330703,-2021.431212,0.00041096,120]
[407646246,1772604330760,-2021.431212,0.00041096,120]
[407646247,1772604330818,-2021.431212,0.00041096,120]
[407646248,1772604330876,-2021.431212,0.00041096,120]
[407646249,1772604330933,-2021.431212,0.00041096,120]
[407646250,1772604330991,-2021.431212,0.00041096,120]
[407646251,1772604331051,-2021.431212,0.00041096,120]
[407646252,1772604331113,-2021.431212,0.00041096,120]
[407646253,1772604331181,-2021.431212,0.00041096,120]
[407646254,1772604331242,-2021.431212,0.00041096,120]
[407646255,1772604331302,-2021.431212,0.00041096,120]
[407646256,1772604331366,-2021.431212,0.00041096,120]
[407646257,1772604331434,-2021.431212,0.00041096,120]
[407646258,1772604331504,-2021.431212,0.00041096,120]
[407646259,1772604331567,-2021.431212,0.00041096,120]
[407646260,1772604331632,-2021.431212,0.00041096,120]
[407646261,1772604331700,-2021.431212,0.00041096,120]
[407646262,1772604331764,-2021.431212,0.00041096,120]
[407646263,1772604331829,-2021.431207,0.00041096,120]
[407646264,1772604331890,-160.665771,0.00041096,120]
[407646265,1772604331954,-250.051861,0.00041096,120]
[407646266,1772604332012,-883.233165,0.00041096,120]
[407646267,1772604332071,-883.233165,0.00041096,120]
[407646268,1772604332130,-883.233165,0.00041096,120]
[407646269,1772604332188,-883.233165,0.00041096,120]
[407646270,1772604332245,-883.233165,0.00041096,120]